{"text_format":"2","workbook":"xlsx","n_sheets":1,"sheets":["Munka1"],"not_rendered":{"charts":0,"images":0,"macros":0,"external_links":0,"defined_names":0,"comments":0,"pivot_tables":0},"unopened":[],"bounds":{"document_bytes":16777216,"sheet_cells":100000,"run_cost":"one","rows_first":2000,"rows_last":500,"rows_between":2000,"halvings":0,"cell_chars":16384,"cell_head_chars":4096},"cells_cut":0,"cells_raw":0,"read":"whole","date_system":"1900"}

{"sheet":"Munka1","index":0,"n_rows":231,"n_cols":7,"rows_kept":231,"cut":false,"hidden":false,"merged":[[228,1,228,5],[229,1,229,5],[230,1,230,5]]}
[]
[null,"Cég neve, székhelye: "]
["Sorsz.","Termékleírás","Mennyiségi egység  ","Minimum rendelési mennyiség","Nettó egységár","mennyiség","Összes nettó ár soronként - a megadott mennyiségre"]
["1.","Ablakmosó  teleszkópos nyéllel","db",null,null,7,{"$f":"(E4*F4)","v":0}]
["2.","A-CLEAN 516 25 ltr. - savas ipari alumíniumtisztító","db",null,null,9,{"$f":"(E5*F5)","v":0}]
["3.","Akkusaru zsír spray 400 ml.","db",null,null,12,0]
["4.","Általános fertőtlenítőszer DOMESTOS, Felhasználási terület: közintézményekben felmosásra, wc-k, mosdók tisztítására fertőtlenítésére, felületek tisztítására és fertőtlenítésére,valamint fehérítésre.Antibakteriális spektrum: baktericid,fungicid.Hígítás: 1%, 5 literes kanna ","kanna",null,null,3,0]
["5.","Alufólia 30m","tek",null,null,280,0]
["6.","Aluminizált kesztyű 38cm - 1 pár","db",null,null,20,0]
["7.","Asztali lámpa 1x 40W fekete  ","db",null,null,3,0]
["8.","Asztali lámpa 1x40W E14 lila","db",null,null,3,0]
["9.","Bambusz nyelű vessző seprű","db",null,null,7,0]
["10.","Billenős szemetes  sima   26L","db",null,null,7,0]
["11.","Billenős szemetes CURVER Click-It fehér  25L","db",null,null,7,0]
["12.","Billenős szemetes CURVER Click-It fehér  50L","db",null,null,7,0]
["13.","Cirokseprű nagy 5 varrásos","db",null,null,7,0]
["14.","Csatornatisztító forgófej G1/8″ 3-04","db",null,null,69,0]
["15.","Dugalj földelt süllyesztett 2+F + fedél fehér","db",null,null,7,0]
["16.","DY-02 habzásmentes szőnyegtisztító 5 liter","kanna",null,null,7,0]
["17.","Dymo Letra Tag feliratkozó szalag (12 mm*4 mm) sárga","db",null,null,7,0]
["18.","Ecet 20 % 1 l-es","db",null,null,7,0]
["19.","Edénymosókefe","db",null,null,7,0]
["20.","Egyszer használatos fólia kesztyű, PE áttetsző 100db/cs","csg",null,null,7,0]
["21.","Eldobható arcmaszk papír 3 réteg gumis","db",null,null,630,0]
["22.","Eldobható kanál (100db/csg) (* Az ár 1 darabra vonatkozik,minimum rendelési egység 100 db)","db","Minimum rendelhető 100 db vagy annak többszöröse",null,700,0]
["23.","Eldobható kés (100db/csg)  (* Az ár 1 darabra vonatkozik,minimum rendelési egység 100 db)","db","Minimum rendelhető 100 db vagy annak többszöröse",null,1400,0]
["24.","Eldobható pohár 1dl fehér    (* Az ár 1 darabra vonatkozik,minimum rendelési egység 100 db)","db","Minimum rendelhető 100 db vagy annak többszöröse",null,1400,0]
["25.","Eldobható pohár 2 dl víztiszta  (* Az ár 1 darabra vonatkozik,minimum rendelési egység 100 db)","db"," Minimum rendelhető 100 db vagy annak többszöröse",null,2800,0]
["26.","Eldobható pohár 2dl fehér  peremezett (*Az ár 1 darabra vonatkozik,minimum rendelési egység 100 db)","db"," Minimum rendelhető 100 db vagy annak többszöröse",null,15400,0]
["27.","Eldobható pohár 3dl fehér  (* Az ár 1 darabra vonatkozik,minimum rendelési egység 100 db)","db","Minimum rendelhető 100 db vagy annak többszöröse",null,700,0]
["28.","Eldobható pohár 5dl fehér  (* Az ár 1 darabra vonatkozik,minimum rendelési egység 100 db)","db","Minimum rendelhető 100 db vagy annak többszöröse",null,140,0]
["29.","Eldobható tányér lapos osztatlan   (* Az ár 1 darabra vonatkozik,minimum rendelési egység 100 db)","db","Minimum rendelhető 100 db vagy annak többszöröse",null,1400,0]
["30.","Eldobható tányér mély 750ml füles   (* Az ár 1 darabra vonatkozik,minimum rendelési egység 100 db)","db"," Minimum rendelhető 100 db vagy annak többszöröse",null,420,0]
["31.","Eldobható villa (100db/csg) (* Az ár 1 darabra vonatkozik,minimum rendelési egység 100 db)","db","Minimum rendelhető 100 db vagy annak többszöröse",null,700,0]
["32.","Felmosó garnitura BONUS (vödör,csavaró,nyél,fej) ","db",null,null,28,0]
["33.","Felmosó VILEDA Ultramax box (nyél, fej, vödör, csavaró)","db",null,null,2,0]
["34.","Felmosó vödör + csavaró 12 l","db",null,null,7,0]
["35.","Felmosófej BONUS MicroMop B629 (zöld/lila, lila/fehér)","db",null,null,84,0]
["36.","Felmosófej BONUS SupraMop szintetikus sárga ","db",null,null,14,0]
["37.","Felmosófej BONUS XL madzagos 190g ","db",null,null,70,0]
["38.","Felmosófej BONUS XXL Ipari pamut 230g  ","db",null,null,1400,0]
["39.","Felmosófej VILEDA Style pamut 160gr csavaros nyélhez","db",null,null,14,0]
["40.","Felmosónyél (130cm)  alukróm ","db",null,null,56,0]
["41.","Felmosónyél (140 cm) alumínium mophoz megjegyzés: 40 cm-es és 50 cm-es tartóhoz is használható","db",null,null,7,0]
["42.","Felmosónyél (150cm) alumínium","db",null,null,21,0]
["43.","Felületfertőtlenítő oldat BRADOSEPT 1 l-es szórófejes/baktericid, virucid, fungicid ","db",null,null,7,0]
["44.","Fémsúroló BONUS 3db-os ","csg",null,null,28,0]
["45.","Fénycső 12W827 E27 Economy Twister csavaros","db",null,null,84,0]
["46.","Fénycső 18W 60 cm hosszú, armatúrába való, warm","db",null,null,7,0]
["47.","Fénycső 18W 60 cm hosszú, armatúrába való, white","db",null,null,7,0]
["48.","Fénycső 18W/840 4 csöves","db",null,null,14,0]
["49.","Fénycső 18W/840 super 80 master TL-D","db",null,null,7,0]
["50.","Fénycső 36W 120 cm hosszú, armatúrába való, warm","db",null,null,7,0]
["51.","Fénycső 36W 120 cm hosszú, armatúrába való, white","db",null,null,7,0]
["52.","Fénycső 36W/840 Super 80 MASTER TL-D","db",null,null,70,0]
["53.","Fénycső 58W/840 Super 80 MASTER TL-D","db",null,null,70,0]
["54.","Fénycső 9W/840/2P","db",null,null,14,0]
["55.","fertőtlenítő hatású.foly. szappan, higiénikus kézmosáshoz 3x2literes csomag ","csg",null,null,2,0]
["56.","fertőtlenítő hatású.foly. szappan, higiénikus kézmosáshoz 8x500ml-es csomag","csg",null,null,2,0]
["57.","FOLYÉKONY MOSOGATÓSZER SIDONIA STRONG, Felhasználási terület: közintézményekben, zsíroldékonysága kiemelkedő. Gyorsan és cseppmentesen szárad.   Kiszerelés: 5 liter ","kanna",null,null,7,0]
["58.","Folyékony szappan MILD 5 l ","db",null,null,7,0]
["59.","Földelt dugalj, PVC 16A, fehér, törésgátlós","db",null,null,7,0]
["60.","Frissentartó Fólia 20 méteres tekercs","tek",null,null,14,0]
["61.","Gépi padozattisztító koncentrátum DOMESYS STRONG FLOOR\nerős szennyeződésekre  0,5-1% 20 liter/kanna ","kanna",null,null,14,0]
["62.","Gumigyűrű színes 2-4cm   10g","csg",null,null,28,0]
["63.","Gumikesztyű    L méret ","pár",null,null,28,0]
["64.","Gumikesztyű    M méret ","pár",null,null,28,0]
["65.","Gumikesztyű    XL méret ","pár",null,null,14,0]
["66.","Gumikesztyű  Nitril plussz  ","pár",null,null,7,{"$f":"(E69*F69)","v":0}]
["67.","Gyertya led izzó 5W E14","db",null,null,2,0]
["68.","Gyorsfelmosó szett, pedálos, VILEDA \"Easy Wring TURBO\"","db",null,null,2,0]
["69.","Gyorsfelmosó utántöltő fej VILEDA \"Easy Wring TURBO\"","db",null,null,7,0]
["70.","Hagyományos felmosóruha pamut, szegett","db",null,null,2,0]
["71.","HEPA szűrő 6.414-630  1 db/csg","csg",null,null,7,0]
["72.","HEPA szűrő RSE 1400","csg",null,null,42,0]
["73.","Hobby kancsó műanyag 2 literes","db",null,null,7,0]
["74.","Hólapát 39-40 cm aluminium élvédővel műanyag fejjel, fa nyéllel","db",null,null,42,0]
["75.","Hólapát aluminium kivitelben minimum 40 cm tolólappal fa nyéllel ","db",null,null,7,0]
["76.","Hűtő- és uzsonnatasak  25x35 3L  100db/tek","tek",null,null,56,0]
["77.","Hűtőtáska nagy  24-25l (jégakku nélkül)","db",null,null,70,0]
["78.","INTENSIV STAR\n(szuper paszta) semleges kémhatású tisztítószer-zsíroldó koncentrátum 10 kg","db",null,null,58,0]
["79.","Ipari tisztítószer K-H lúgos 5 literes ","kanna",null,null,56,0]
["80.","Izzó 20W 827 AR111 24° 2700K 12V DIM ","db",null,null,168,0]
["81.","Izzó 8,2W GU5,3 12V 827 2700K MR16 36° ","db",null,null,56,0]
["82.","Kémcsőmosó kefe   (átm: 25mm)","db",null,null,28,0]
["83.","Kémcsőmosó kefe  (átm:16mm - teljes hossz:30cm)","db",null,null,7,0]
["84.","Kertiseprű  nyéllel  34022","db",null,null,28,0]
["85.","Kézkrém ATRIX tubusos Aloe Vera és Kamillás  100ml","db",null,null,56,0]
["86.","KIEHL Gommasol 5 ltr. - gumicsík eltávolító","db",null,null,7,0]
["87.","Kihúzható jojó belépőkártya tartóhoz krómozott  ","db",null,null,140,0]
["88.","Kihúzható jojó belépőkártya tartóhoz műanyag ","db",null,null,140,0]
["89.","Klímatisztító aerosol 500ml alkoholbázisú, fertőtlenítő","db",null,null,7,0]
["90.","Korom oldó EGR tisztító","db",null,null,13,0]
["91.","Kosár Műanyag 38x26x13cm","db",null,null,14,0]
["92.","Kosár Műanyag 50x35x20cm","db",null,null,7,0]
["93.","Körömkefe egyenes","db",null,null,210,0]
["94.","Kötött sárga kevlar karvédő 4667","db",null,null,5,0]
["95.","Krémkesztyű 100ml","db",null,null,48,0]
["96.","Kukazsák  160L  10db/csg","csg",null,null,280,0]
["97.","Lábtörlő  kültéri gumi","db",null,null,7,0]
["98.","Lábtörlő 35x60  kókusz  vastag","db",null,null,14,0]
["99.","Lámpatest 1x18W  IP65 LED csővel","db",null,null,70,0]
["100.","Lámpatest 1x18W  IP65 UV PC*","db",null,null,168,0]
["101.","Lámpatest 1x36W  EVG IP65","db",null,null,28,0]
["102.","Lámpatest 1x9W  IP65 LED csővel","db",null,null,28,0]
["103.","Lámpatest 2x0,6mIP65 LED csőhöz","db",null,null,70,0]
["104.","Lámpatest 2x1,2m IP65 LED csőhöz","db",null,null,70,0]
["105.","LED égő E14 4-6 W white, gyertya ","db",null,null,7,0]
["106.","LED égő E14 4-6 W white, kerek","db",null,null,7,0]
["107.","LED égő E27 9 W filament led","db",null,null,7,0]
["108.","LED égő E27 9 W white","db",null,null,7,0]
["109.","LED izzó E14 4-6 W filament led, gyertya","db",null,null,7,0]
["110.","LED izzó E14 4-6 W filament led, kerek","db",null,null,7,0]
["111.","led lámpa E27 5,5-6W melegfehér 470 lumen","db",null,null,7,0]
["112.","led lámpa E27 8W melegfehér 806 lumen","db",null,null,7,0]
["113.","Led-stick izzó  E14/10W semleges fehér (1050 lm) EEC: A+","db",null,null,7,0]
["114.","Lefolyótisztító  granulátum 500 g BÚVÁR","db",null,null,7,0]
["115.","Légy és szúnyogirtó CHEMOTOX  300ml","db",null,null,5,0]
["116.","Lombseprű nyéllel","db",null,null,7,0]
["117.","Longlife Conductan padlóbevonat 10l","db",null,null,27,0]
["118.","Mágneses mop tartó 50 cm-es","db",null,null,2,0]
["119.","Mikroszálas univerzális törlőkendő 2 db-os  30*35","db",null,null,700,0]
["120.","MOP huzat Basic 40cm","db",null,null,7,0]
["121.","Mop pamut 50cm füles és zsebes ","db",null,null,2,0]
["122.","Mop tartó COMBISPEED  (50X13cm)","db",null,null,42,0]
["123.","Mop tartó zsebes, füles 40 cm","db",null,null,7,0]
["124.","Mopprés Jepy felmosó szervízkocsihoz","db",null,null,14,0]
["125.","Mosogatószivacs BONUS 10db-os  ","csg",null,null,70,0]
["126.","Mosogatószivacs BONUS formázott 3db-os ","csg",null,null,28,0]
["127.","Mosogatószivacs BONUS nagy 5db-os ","csg",null,null,14,0]
["128.","Nedves törlőkendő DOMESTOS fertőtlenítős  60db/csg","db",null,null,14,0]
["129.","Nyél titánium fém  menettel 130-as","db",null,null,7,0]
["130.","Nyeles padlópengéző","db",null,null,31,{"$f":"(E133*F133)","v":0}]
["131.","Nyeles súroló kefe   ","db",null,null,2,0]
["132.","Nylonzacskó tépős 25 x 35 cm","db","Minimum rendelhető 100 db vagy annak többszöröse",null,140,0]
["133.","Padlófelmosó DALMA 5 l-es rózsaszín","db",null,null,7,0]
["134.","Papírvatta vágott (20cmx20cm) 1000gr/csg","csg",null,null,280,0]
["135.","Papírvatta vágott 500 g/csg  40cmx60cm (100% fehérségű)","db",null,null,700,0]
["136.","Partvis lószőr +fanyél","set",null,null,28,0]
["137.","Partvis műszőr +műanyag nyél","set",null,null,28,0]
["138.","Partvisfej műanyag","db",null,null,28,0]
["139.","Pókhálózó,poroló sztatikus, teleszkópos 64-90 cm","db",null,null,14,0]
["140.","Pórszívócső antisztatikus Nilfisk-ALTO D27 AS Gégecső 3,5 m","db",null,null,7,0]
["141.","Portörlő rongy pamut  ","db",null,null,10,0]
["142.","Porzsák  W14895  5 db/csg","csg",null,null,42,0]
["143.","Porzsák Aspico 001   5 db-os","db",null,null,7,0]
["144.","Porzsák Aspico 038   5 db-os","db",null,null,7,0]
["145.","Porzsák Aspico 142   5 db-os","db",null,null,7,0]
["146.","Porzsák Aspico 214   5 db-os","db",null,null,7,0]
["147.","Porzsák Aspico 270  5 db-os","db",null,null,7,0]
["148.","Porzsák DAEWOO","csg",null,null,28,0]
["149.","Porzsák Electrolux Essensio ZEO5420  4db/csg","db",null,null,28,0]
["150.","Porzsák ELEKTROLUX-CARIO-s bag TM Clinic","csg",null,null,14,0]
["151.","Porzsák ETA 13","csg",null,null,28,0]
["152.","Porzsák papír ROWENTA ZR-815-hoz 4db/csg.","db",null,null,42,0]
["153.","Porzsák PHILIPS FC6842 készülékhez","csg",null,null,7,0]
["154.","Porzsák SAMSUNG 4111 porszívóhoz","db",null,null,2,0]
["155.","Porzsák W302000449 5 db/csg","csg",null,null,42,0]
["156.","Porzsák Zanussi ZAN2300 porszívóhoz","db",null,null,7,0]
["157.","PW Spill Ipari szorbens tekercs","tekercs",null,null,6,0]
["158.","Rekesz műanyag M 30","db",null,null,3,0]
["159.","Rozsdamentes porlasztó 24-50-100 l","db",null,null,9,0]
["160.","RSP 41 penge 100db/cs.","db",null,null,122,0]
["161.","Ruhaszárító kétszárnyú nyitható","db",null,null,3,0]
["162.","Ruhaszárító műanyag (pelenkaszárító)","db",null,null,3,0]
["163.","Sebtapasz CURE AID 10 darab/doboz","csg",null,null,28,0]
["164.","Simítózáras tasak    (6x8cm)    40mic 100db/csg  ","csg",null,null,7,0]
["165.","Simítózáras tasak  (10x15cm) 40mic 100db/csg ","csg",null,null,7,0]
["166.","Simítózáras tasak  (12x17cm) 40mic 100db/csg  ","csg",null,null,7,0]
["167.","Simítózáras tasak  (15x22cm) 40mic 100db/csg  ","csg",null,null,2,0]
["168.","Simítózáras tasak  (18x25cm) 40mic 100db/csg  ","csg",null,null,7,0]
["169.","Simítózáras tasak  (20x30cm) 40mic 100db/csg  ","csg",null,null,3,0]
["170.","Simítózáras tasak  (25x35cm) 40mic 100db/csg  ","csg",null,null,7,0]
["171.","Simítózáras tasak  (30x40cm) 40mic 100db/csg  ","csg",null,null,2,0]
["172.","Simítózáras tasak  (8x12cm)    40mic 100db/csg  ","csg",null,null,5,0]
["173.","Súrolókefe piskótaforma (nagy)","db",null,null,7,0]
["174.","Szappanos párna BONUS 10db-os","csg",null,null,7,0]
["175.","Szemetes billenős 35 Literes","db",null,null,7,0]
["176.","Szemetes billenős 60 literes ","db",null,null,7,0]
["177.","Szemetes billenős 9 literes ","db",null,null,7,0]
["178.","Szemetes lapát + kis seprű","db",null,null,7,0]
["179.","Szemetes lapát műanyag","db",null,null,7,0]
["180.","Szemeteszsák   fekete 135 l 60mik.","db",null,null,28,0]
["181.","Szemeteszsák  (50X60) 30L 20db/tek  ","tek",null,null,70,0]
["182.","Szemeteszsák  (60X80) 80L 20db/tek  ","tek",null,null,28,0]
["183.","Szemeteszsák 60x70 20db/tek 60 literes","csg",null,null,28,0]
["184.","Szemeteszsákhúzózáras extra 25 l 20/db","tek",null,null,28,0]
["185.","Szigetelő szalag  20x19cm fehér","tek",null,null,56,0]
["186.","Szivacskendő BONUS 3db-os ","csg",null,null,56,0]
["187.","Szórófejes flakon fertőtlenítő folyadékhoz 0,5 l","db",null,null,3,0]
["188.","Szórófejes flakon fertőtlenítő folyadékhoz 1 l","db",null,null,3,0]
["189.","Szűrőbetét 3M 6075 (2db-os csomag)","csg",null,null,7,0]
["190.","Szűrőbetét Cintropur ipari 25 mic. NW50 / NW62 / NW72   5db/csg","csg",null,null,7,0]
["191.","Takarófólia  (4x5m)  ","db",null,null,28,0]
["192.","Takarófólia  (4x5m) erős  létrázható","db",null,null,28,0]
["193.","Tálca műanyag 44*30","db",null,null,28,0]
["194.","Terem partvis fej 60 cm ","db",null,null,7,{"$f":"(E197*F197)","v":0}]
["195.","Törlőkendő BONUS (38x38cm) általános 3db-os ","csg",null,null,280,0]
["196.","Törlőkendő mikroszálas 1db-os színes 30x35cm","db",null,null,280,0]
["197.","Törlőkendő VILEDA (34x36cm) univerzális 3db-os ","csg",null,null,84,0]
["198.","Trisó 500g","db",null,null,5,0]
["199.","Útszóró só 25 kg/csg","db",null,null,7,0]
["200.","Útszóró só környezetbarát 10kg/csg","db",null,null,28,0]
["201.","UV stabil sátorfólia","tekercs",null,null,9,0]
["202.","Üvegfelület tisztító CONTACT T1,  Felhasználási terület: közintézményekben,üveg, tükör, porcelán, és bútorfelületek tisztítására kifejlesztett tisztítószer. Az átlagos szennyeződések (por, ujjlenyomat) eltávolításán kívül füst-,zsír-és olajoldó hatással rendelkezik. Hígítás: töményen. Kiszerelés: 5 literes kanna  ","kanna",null,null,7,0]
["203.","Üvegmosó kefe kicsi 0,3 L-es","db",null,null,14,0]
["204.","Üvegmosó kefe nagy 1,5 L-es","db",null,null,6,0]
["205.","Üvegmosó kefe nagy 1L-es","db",null,null,14,0]
["206.","Üvegmosó kefe szivacsos","db",null,null,7,0]
["207.","Vállfa D műanyag","db",null,null,63,0]
["208.","VARTA litium elem  V23GA ","db",null,null,2,0]
["209.","Vasalódeszka","db",null,null,7,0]
["210.","Viaszos asztalterítő 200 cm x140 cm","db",null,null,28,0]
["211.","Vízkőoldó  foszfórsavas 1 l CLEANSYS ACID","db",null,null,7,0]
["212.","Vízkőoldó foszfórsavas 5 l CLEANSYS ACID","db",null,null,7,0]
["213.","Vizsgálókesztyű MAXTER/AMBULEX nitril, kék, L méret 100 db/dob.","dob",null,null,2,0]
["214.","Vödör műanyag  14L","db",null,null,7,0]
["215.","WC frissítő BREF power aktív 50 g (golyó)","db",null,null,7,0]
["216.","WC frissítő korong DUCK Fresh Discs 4:1","db",null,null,7,0]
["217.","Wc kefe tartályos ","db",null,null,98,0]
["218.","Wc pumpa","db",null,null,28,0]
["219.","Wc ülőke műanyag thermo plaszt","db",null,null,2,0]
["220.","Zuhanyfüggöny PVA, 180*200 cm homok szín, karikával","db",null,null,7,0]
["221.","Zuhanyfüggöny tartó  125-220cm","db",null,null,7,0]
["222.","Zuhanyfüggöny tartó  70-125cm","db",null,null,42,0]
["223.","Zsineg 2/0,40 vastag  500g","db",null,null,3,0]
["224.","Zsineg 2/0,9  közepes  200g","db",null,null,3,0]
["225.","ZSÍRTALANÍTÓ WELL DONE,  Felhasználási terület: munkaasztalok, padozatok, csempék, edények, grillezők, sütök, fritőzők, gépek és egyáltalán minden olyan területen, ahol az olajos zsíros odaéget makacs szennyeződések találhatóak.Hígítás: töményen. Kiszerelés 5 l.","kanna",null,null,7,0]
[null,"Mindösszesen nettó ár:",{"$nulls":4},{"$f":"SUM(G4:G228)","v":0}]
[null,"ÁFA: "]
[null,"MIndösszesen bruttó ár:"]